[Event "VIII Open Semana Santa 2024"]
[Site "San Vicente del Raspeig"]
[Date "2024.03.27"]
[Round "1.1"]
[White "Alekseenko, Kirill"]
[Black "Blanco Garcia, Liliam Barbara"]
[Result "1-0"]
[ECO "C85"]
[WhiteElo "2650"]
[BlackElo "2068"]
[Annotator "TA"]
[PlyCount "71"]
[EventDate "2024.03.27"]
[EventType "swiss"]
[EventCountry "ESP"]
[SourceTitle "playchess.com"]
[Source "ChessBase"]
[SourceQuality "1"]
[TimeControl "5400+30"]

{[%evp 13,71,9,23,6,14,-7,0,0,2,-5,0,-6,22,0,16,20,21,2,45,25,25,25,61,43,45,49,109,93,91,97,95,91,118,123,128,123,164,139,153,142,141,140,348,355,544,536,652,668,659,652,1229,880,4982,4927,29985,29986,29988,29989,29989,29990]} 1. e4 {[%emt 0:00:30]} e5 {[%emt 0:00:09]} 2. Nf3 {[%emt 0:00:00]} Nc6 {[%emt 0:00:05]} 3. Bb5 {[%emt 0:00:08]} a6 {[%emt 0:00:08]} 4. Ba4 {[%emt 0:00:08]} Nf6 {[%emt 0:00:06]} 5. O-O {[%emt 0:00:52]} Be7 {[%emt 0:00:10]} 6. Bxc6 {[%emt 0:00:49]} dxc6 {[%emt 0:00:19]} 7. d3 {[%emt 0:00:12]} Nd7 {[%emt 0:00:14]} 8. Be3 {[%emt 0:01:32]} O-O {[%emt 0:00:28]} 9. Nc3 {[%emt 0:00:26]} Re8 {[%emt 0:01:28]} 10. Ne2 {[%emt 0:00:24] The position is equal.} c5 {[%emt 0:09:07]} 11. a4 {[%emt 0:03:14]} f6 {[%emt 0:00:57]} 12. Nh4 {[%emt 0:09:00]} g6 {[%emt 0:04:29][%cal Of6f5]} 13. Nf3 {[%emt 0:01:00]} Nf8 {[%emt 0:00:40]} 14. Nd2 {[%emt 0:03:21]} Ne6 {[%emt 0:07:09]} 15. h3 {[%emt 0:02:27]} Kg7 {[%emt 0:09:21]} 16. Kh1 {[%emt 0:03:18]} g5 {[%emt 0:03:43]} 17. Ng3 {[%emt 0:01:40]} Nf4 {[%emt 0:02:04]} 18. Qf3 {[%emt 0:00:57]} Rg8 {[%emt 0:03:59]} 19. Nf5+ {[%emt 0:13:30]} Kf8 {[%emt 0:08:38]} (19... Kh8 $14) 20. g3 {[%emt 0:07:37]} Bxf5 {[%emt 0:06:00]} 21. exf5 {[%emt 0:01:18] Strongly threatening Ne4.} Nd5 {[%emt 0:01:21]} 22. Ne4 {[%emt 0:01:40]} b6 {[%emt 0:00:35]} 23. a5 {[%emt 0:01:43] White is more active.} Nb4 {[%emt 0:02:46]} 24. Rfc1 {[%emt 0:03:58]} Qe8 {[%emt 0:01:40]} 25. axb6 {[%emt 0:04:31]} cxb6 {[%emt 0:00:13]} 26. c3 {[%emt 0:00:51]} Nxd3 {[%emt 0:03:08] [#]} 27. Bxg5 {[%emt 0:01:44]} Nxf2+ $2 {[%emt 0:05:37] Black cannot hold the game after this.} (27... Nxc1 $16 {was called for.} 28. Bh6+ (28. Nxf6 $2 {loses.} Bxf6 29. Bxc1 Kg7 $19) (28. Bxf6 Nb3 $16) 28... Rg7) 28. Qxf2 $18 {[%emt 0:02:01]} fxg5 {[%emt 0:01:42]} (28... Rxg5 $142 29. Nxg5 fxg5) 29. f6 {[%emt 0:01:42]} Bd8 {[%emt 0:00:31]} 30. Qf5 {[%emt 0:00:14][%csl LRg5,LRh7][%cal Oc1d1]} Ra7 {[%emt 0:03:40]} 31. Rd1 {[%emt 0:01:33][%cal Oa1a6] [#] Repels Qd7. Black must now prevent Rxa6!} Rg6 {[%emt 0:03:51]} 32. Rd6 {[%emt 0:02:14][%cal Oa1d1] Threatens to win with Rad1!} Rf7 {[%emt 0:04:39]} 33. Rad1 {[%emt 0:00:52][%cal Ba1d1,Bd1d7,Bd7h7][%mdl 32]} Bc7 {[%emt 0:02:31]} 34. Rd7 {[%emt 0:00:07] White mates.} Rxd7 {[%emt 0:12:09]} 35. Rxd7 {[%emt 0:00:08]} Bd8 {[%emt 0:00:13]} 36. Rxh7 {[%emt 0:01:24] Weighted Error Value: White=0.07 (flawless) /Black=0.61.  Loses game:     	---       	Black=1      Mistake:       	---       	Black=2      Inaccurate:     	---       	Black=4      OK:         	White=8     	Black=5      Best:        	---       	Black=2} 1-0

[Event "VIII Open Semana Santa 2024"]
[Site "San Vicente del Raspeig"]
[Date "2024.03.27"]
[Round "1.2"]
[White "Hu, Merric"]
[Black "Ivanchuk, Vasyl"]
[Result "0-1"]
[ECO "B40"]
[WhiteElo "2068"]
[BlackElo "2625"]
[Annotator "TA"]
[PlyCount "114"]
[EventDate "2024.03.27"]
[EventType "swiss"]
[EventCountry "ESP"]
[SourceTitle "playchess.com"]
[Source "ChessBase"]
[SourceQuality "1"]
[TimeControl "5400+30"]

{[%evp 12,114,0,0,7,6,15,0,0,0,-2,-3,-1,-17,-10,-19,-7,-8,0,0,-6,-11,-10,-14,-12,-5,-8,-2,0,0,0,0,0,-8,-4,-8,-12,-7,-5,-8,-5,-19,-10,-25,-35,-64,-37,-43,-28,-142,-138,-114,-91,-91,-98,-127,-93,-121,-80,-80,-80,-80,-80,-83,-63,-63,-63,-63,-63,-63,-63,-64,-63,-63,-64,-64,-64,-64,-63,-64,-63,-63,-63,-63,-45,-55,0,-63,-8,-8,-8,-8,-8,-8,-8,-8,-8,-50,-36,-75,-83,-1737,-1730,-29998,-29999]} 1. e4 {[%emt 0:00:06]} c5 {[%emt 0:00:18]} 2. Nf3 {[%emt 0:00:19]} e6 {[%emt 0:00:09]} 3. b3 {[%emt 0:00:06]} b6 {[%emt 0:00:12]} 4. Bb2 {[%emt 0:00:34]} Bb7 {[%emt 0:00:05]} 5. Nc3 {[%emt 0:01:02]} Nc6 {[%emt 0:00:27]} 6. d4 {[%emt 0:01:12]} cxd4 {[%emt 0:00:05]} 7. Nxd4 {[%emt 0:00:04]} Nf6 {[%emt 0:00:03]} 8. Nxc6 {[%emt 0:04:47]} Bxc6 {[%emt 0:01:16]} 9. e5 {[%emt 0:05:13]} Ne4 {[%emt 0:16:25] The position is equal.} 10. Nxe4 {[%emt 0:01:34]} Bxe4 {[%emt 0:00:09]} 11. Qe2 {[%emt 0:04:43]} Bg6 {[%emt 0:04:13]} 12. Qd2 {[%emt 0:02:30]} Qc7 {[%emt 0:04:28]} 13. Bc4 {[%emt 0:07:46]} Be7 {[%emt 0:02:10]} (13... Ba3 $5 14. Bd4 O-O $11) 14. O-O {[%emt 0:02:44]} O-O {[%emt 0:00:36]} 15. Rad1 {[%emt 0:08:04]} Rfd8 {[%emt 0:00:29]} 16. h3 {[%emt 0:02:35]} a6 {[%emt 0:04:49]} 17. Bd3 {[%emt 0:04:14]} b5 {[%emt 0:00:29]} 18. Bxg6 {[%emt 0:05:12]} hxg6 {[%emt 0:01:09]} 19. c4 {[%emt 0:03:22]} bxc4 {[%emt 0:18:09]} 20. Rc1 $1 {[%emt 0:00:06]} d5 {[%emt 0:00:10]} 21. exd6 {[%emt 0:00:06]} Rxd6 {[%emt 0:45:09]} 22. Qe2 {And now Be5 would win.} Rc6 $36 {[%emt 0:00:00][%mdl 2048] Black has some pressure.} 23. Rxc4 {[%emt 0:13:56]} Rxc4 {[%emt 0:00:00]} 24. bxc4 {[%emt 0:00:07]} Rd8 {[%emt 0:00:00]} 25. Rc1 {[%emt 0:04:19]} Bc5 {[%emt 0:00:00] Black wants to play ...Qf4.} 26. Rd1 {[%emt 0:09:25]} Rxd1+ {[%emt 0:00:00]} 27. Qxd1 $11 {[%emt 0:00:04][%mdl 4096] Endgame. KQB-KQB} Qa5 {[%emt 0:00:00]} 28. a3 {[%emt 0:04:06]} f6 {[%emt 0:00:00]} ({Of course not} 28... Bxa3 29. Bxa3 Qxa3 30. Qd8+ Kh7 31. Qh4+ Kg8 32. Qd8+ Kh7 33. Qh4+ Kg8 34. Qd8+ $11) 29. g3 {[%emt 0:01:20]} Kh7 {[%emt 0:00:00][%cal Oa5c7]} 30. a4 {[%emt 0:02:57] [#]} (30. Qe2 $11 {remains equal.}) 30... Qb6 $1 $17 {[%emt 0:00:00][%csl LRb2,LRf2]} 31. Qc2 {[%emt 0:00:27]} Qc6 {[%emt 0:00:00] Black is more active.} (31... Qb7 {is interesting.} 32. Qc3 Qe4 33. Ba3 Bd4) 32. Qd3 {[%emt 0:05:45] Prevents Qf3} Qxa4 {[%emt 0:00:00]} 33. h4 {[%emt 0:00:55]} Qa5 {[%emt 0:00:14]} 34. Bc3 {[%emt 0:01:51]} Qc7 {[%emt 0:00:01]} 35. h5 {[%emt 0:02:32]} f5 {[%emt 0:00:00]} 36. hxg6+ {[%emt 0:00:06]} Kxg6 {[%emt 0:00:01]} 37. Kf1 {[%emt 0:02:57]} a5 {[%emt 0:03:13] aiming for ...a4.} 38. Qe2 {[%emt 0:01:20]} Qc6 {[%emt 0:01:01][%cal Rc6h1]} 39. Qe5 $1 {[%emt 0:00:01]} Bf8 {[%emt 0:00:21]} 40. Bxa5 {[%emt 0:00:34]} Qxc4+ {[%emt 0:00:04]} 41. Kg1 {[%emt 0:00:30]} Be7 {[%emt 0:00:11]} 42. Bb6 {[%emt 0:00:51]} Bf6 {[%emt 0:00:15]} 43. Qb8 {[%emt 0:00:39]} Qc1+ {[%emt 0:01:27]} 44. Kh2 {[%emt 0:00:12]} Qc6 {[%emt 0:00:05] Dodges Qe8+} 45. Be3 {[%emt 0:00:23]} e5 {[%emt 0:00:14]} 46. Qg8 {[%emt 0:00:29]} Qd7 {[%emt 0:00:24]} 47. Qc4 $1 {[%emt 0:00:19]} Bd8 {[%emt 0:00:45]} (47... Qd1 {seems wilder.} 48. Kg2 Qg4 49. Qe6 Qe4+) 48. Qa6+ {[%emt 0:00:47]} Bf6 {[%emt 0:00:12]} (48... Kf7 $15) 49. Qa8 {[%emt 0:00:20]} (49. Qc4 $11) 49... e4 {[%emt 0:00:58]} ({Black should play} 49... Kh7 $15) 50. g4 $1 $11 {[%emt 0:01:17]} Qe6 {[%emt 0:00:06]} (50... fxg4 {simplifies} 51. Qxe4+ Qf5 52. Qxf5+ Kxf5 53. Kg2 Bh4) 51. gxf5+ {[%emt 0:00:04]} Qxf5 {[%emt 0:00:05]} 52. Qe8+ {[%emt 0:00:26]} Kh7 {[%emt 0:00:02]} 53. Kg2 {[%emt 0:00:50]} Be5 {[%emt 0:00:13]} 54. Kf1 {[%emt 0:00:40]} Qh3+ {[%emt 0:00:10]} 55. Ke2 {[%emt 0:00:23] [#]} Qf3+ $1 {[%emt 0:00:02]} 56. Ke1 $2 {[%emt 0:00:43][%mdl 8192]} (56. Kd2 $17 Bf4 57. Bxf4 Qxf2+ (57... Qxf4+ 58. Ke2 $11) 58. Kc3) 56... Bc3+ $19 {[%emt 0:00:34]} 57. Kf1 {[%emt 0:00:04]} Qh1+ {[%emt 0:00:06] Weighted Error Value: White=0.32/Black=0.07 (flawless) .  Loses game:     	White=1     	---        Mistake:       	White=2     	Black=2      Inaccurate:     	White=5     	Black=2      OK:         	White=20    	Black=15     Best:        	White=4     	Black=4      Strong:       	White=4     	Black=2} 0-1

[Event "VIII Open Semana Santa 2024"]
[Site "San Vicente del Raspeig"]
[Date "2024.03.27"]
[Round "1.3"]
[White "Yuffa, Daniil"]
[Black "Martinez Soriano, Pablo"]
[Result "1-0"]
[ECO "A18"]
[WhiteElo "2606"]
[BlackElo "2066"]
[Annotator "TA"]
[PlyCount "47"]
[EventDate "2024.03.27"]
[EventType "swiss"]
[EventCountry "ESP"]
[SourceTitle "playchess.com"]
[Source "ChessBase"]
[SourceQuality "1"]
[TimeControl "5400+30"]

{[%evp 12,47,11,12,29,35,42,45,64,67,73,34,40,51,59,48,50,45,253,241,345,368,352,363,368,365,333,285,552,523,559,560,749,759,762,759,911,766]} 1. c4 {[%emt 0:00:07]} Nf6 {[%emt 0:00:09]} 2. Nc3 {[%emt 0:00:13]} e6 {[%emt 0:01:07]} 3. e4 {[%emt 0:00:09]} d5 {[%emt 0:00:50]} 4. e5 {[%emt 0:00:13]} d4 {[%emt 0:01:27]} 5. exf6 {[%emt 0:00:09]} dxc3 {[%emt 0:00:04]} 6. bxc3 {[%emt 0:00:09]} Qxf6 {[%emt 0:00:30]} 7. Nf3 {[%emt 0:00:28]} h6 {[%emt 1:29:53]} 8. Bd3 {[%emt 0:06:33]} c5 {[%emt 0:00:00]} 9. O-O {[%emt 0:01:07]} Bd7 {[%emt 0:00:00] White is slightly better.} 10. Be4 {[%emt 0:06:01]} Bc6 {[%emt 0:00:00]} 11. Qc2 {[%emt 0:08:38] Hoping for d4.} Bd6 {[%emt 0:00:00]} 12. d4 {[%emt 0:04:46]} Bxe4 {[%emt 0:00:00]} 13. Qxe4 {[%emt 0:00:14]} Nc6 {[%emt 0:00:00]} 14. Rb1 {[%emt 0:02:50][%cal Ba1b1,Bb1b7,Bb7d7,Bd7d8][%mdl 32]} Rb8 $2 {[%emt 0:00:00] Black cannot hold the game after this.} (14... O-O-O $14) 15. dxc5 $18 {[%emt 0:15:31][%cal Bd4c5,Bc5c6,Bc6c7][%mdl 32]} Be7 {[%emt 0:00:00] [#]} (15... Be5 {is a better defense.} 16. Rxb7 Rc8 (16... Rxb7 $2 17. Qxc6+ Rd7 18. Rd1 $18) 17. Nxe5 Qxe5 18. Qxe5 Nxe5) 16. Rxb7 $3 {[%emt 0:01:48][%mdl 512]} Rc8 {[%emt 0:00:00]} (16... Rxb7 $2 17. Qxc6+ Rd7 18. Rd1 $18) 17. Nd4 {[%emt 0:02:29]} Nd8 {[%emt 0:00:00] [#]} 18. c6 {[%emt 0:00:41]} O-O {[%emt 0:00:00]} 19. Bf4 {[%emt 0:03:29]} (19. Rxa7 Bc5) 19... Re8 $2 {[%emt 0:00:00]} (19... Rxc6 20. Be5 (20. Rxa7 Rc5 $18) (20. Nxc6 Nxb7 21. Be5 Qg5 $16) (20. Rxe7 Qxe7 21. Nxc6 Qb7 $18) 20... Qh4 21. Qxh4 (21. Rxa7 $2 {loses.} Qxe4 22. Bg3 Bf6 $19) 21... Bxh4 22. Nxc6 (22. Rxa7 Rxc4 23. Bd6 Re8 $18) 22... Nxb7) 20. Rd7 {[%emt 0:03:14] White is clearly winning.} Bf8 {[%emt 0:00:00]} 21. c7 {[%emt 0:04:48]} ({Not} 21. Rxa7 e5 $16) 21... Nb7 {[%emt 0:00:00]} 22. Qxb7 {[%emt 0:00:40]} Qxf4 {[%emt 0:00:00]} 23. Nc6 {[%emt 0:01:02]} Bc5 {[%emt 0:00:00]} 24. Rd8 {[%emt 0:02:42] Weighted Error Value: White=0.11 (very precise) /Black=0.63.  Loses game:     	---       	Black=1      Mistake:       	---       	Black=2      Inaccurate:     	White=1     	Black=1      OK:         	White=10    	Black=5} 1-0

[Event "VIII Open Semana Santa 2024"]
[Site "San Vicente del Raspeig"]
[Date "2024.03.27"]
[Round "1.4"]
[White "Tudela Gonzalez, Victor"]
[Black "Piorun, Kacper"]
[Result "0-1"]
[ECO "A80"]
[WhiteElo "2066"]
[BlackElo "2599"]
[Annotator "TA"]
[PlyCount "72"]
[EventDate "2024.03.27"]
[EventType "swiss"]
[EventCountry "ESP"]
[SourceTitle "playchess.com"]
[Source "ChessBase"]
[SourceQuality "1"]
[TimeControl "5400+30"]

{[%evp 10,72,48,27,25,22,29,35,39,35,35,14,24,28,22,13,20,25,58,55,66,-46,-50,-49,-63,-39,-67,-56,-51,-38,-33,-73,-85,-83,-85,-123,-108,-116,-94,-148,-148,-153,-157,-172,-154,-201,-148,-156,-157,-300,-301,-320,-390,-480,-359,-362,-369,-412,-369,-372,-369,-444,-444,-29957,-5922]} 1. d4 {[%emt 0:00:07]} f5 {[%emt 0:00:15]} 2. Nc3 {[%emt 0:00:28]} d5 {[%emt 0:00:35]} 3. Nf3 {[%emt 0:01:24]} Nf6 {[%emt 0:00:20]} 4. Bf4 {[%emt 0:01:10]} e6 {[%emt 0:04:01]} 5. e3 {[%emt 0:01:37]} Be7 {[%emt 0:02:50]} 6. Bd3 {[%emt 0:01:28]} O-O {[%emt 0:00:27]} 7. O-O {[%emt 0:01:03]} Nbd7 {[%emt 0:00:48]} 8. h3 {[%emt 0:02:24]} a6 {[%emt 0:07:20] White is slightly better.} 9. Ne2 {[%emt 0:01:49]} b5 {[%emt 0:01:10]} 10. a4 {[%emt 0:04:58]} bxa4 {[%emt 0:00:20]} 11. c4 {[%emt 0:08:11]} dxc4 {[%emt 0:00:39]} 12. Bxc4 {[%emt 0:00:09]} Nb6 {[%emt 0:00:05]} 13. Qc2 {[%emt 0:00:52][%cal Of4c7] Strongly threatening Bxc7!} Ra7 {[%emt 0:10:01]} 14. Rfc1 {[%emt 0:05:58]} Bd7 {[%emt 0:03:18] [#]} 15. Bxc7 {[%emt 0:15:17]} Rxc7 $15 {[%emt 0:00:12]} (15... Qxc7 {is interesting.} 16. Bxe6+ Bxe6 17. Qxc7 Rxc7 18. Rxc7 Nfd5) 16. Bxe6+ {[%emt 0:00:07]} Bxe6 {[%emt 0:00:03]} 17. Qxc7 {[%emt 0:00:09]} Nfd5 {[%emt 0:09:19]} 18. Qxd8 {[%emt 0:04:03]} Rxd8 {[%emt 0:00:11]} 19. Ne5 {[%emt 0:00:22][%cal Bf3e5,Be5d3,Bd3c5][%mdl 32]} Bd6 {[%emt 0:00:23]} 20. Nd3 {[%emt 0:03:22]} Bd7 {[%emt 0:00:43]} 21. Nc5 {[%emt 0:05:10]} Bb5 {[%emt 0:00:06]} 22. Nc3 {[%emt 0:02:47]} Nxc3 {[%emt 0:07:21]} 23. Rxc3 {[%emt 0:01:32]} Re8 {[%emt 0:03:07]} 24. Rb1 {[%emt 0:11:45]} ({Better is} 24. Nxa6 Nd5 (24... Bxa6 25. Rc6 $11) 25. Rcc1) 24... Nd5 $17 {[%emt 0:05:46]} 25. Rcc1 {[%emt 0:01:18]} Nb4 {[%emt 0:06:51] Black is much more active.} 26. Ra1 {[%emt 0:02:04]} f4 $36 {[%emt 0:04:21][%mdl 2048] Keeping White busy.} 27. Ra3 {[%emt 0:09:40]} (27. Nxa4 $17 fxe3 28. fxe3) 27... fxe3 {[%emt 0:01:39]} 28. Rxe3 {[%emt 0:15:16]} Rc8 {[%emt 0:00:54]} 29. Nd3 {[%emt 0:00:00] Against Bf4} (29. g3 $17) 29... Rxc1+ $19 {[%emt 0:02:27]} 30. Nxc1 {[%emt 0:00:00]} Bf4 {[%emt 0:04:03]} 31. Rc3 {[%emt 0:00:00]} Bd2 {[%emt 0:00:18] This pair of bishops is nice.} 32. Rc5 {[%emt 0:00:00]} Kf7 {[%emt 0:01:59]} 33. g3 {[%emt 0:00:00]} Bxc1 {[%emt 0:03:49]} 34. Rxc1 {[%emt 0:00:00]} Nd3 {[%emt 0:00:05][%csl LRb2,LRc1] Wards off Re1} 35. Rc2 {[%emt 0:00:00]} Ke6 {[%emt 0:00:04]} 36. Kg2 {[%emt 0:00:00] [#]} (36. g4 $19) 36... Ne1+ {[%emt 0:00:06] Weighted Error Value: White=0.51/Black=0.12 (very precise) .  Mistake:       	White=5     	---        Inaccurate:     	White=2     	Black=1      OK:         	White=11    	Black=12     Best:        	---       	Black=4} 0-1

[Event "VIII Open Semana Santa 2024"]
[Site "San Vicente del Raspeig"]
[Date "2024.03.27"]
[Round "1.5"]
[White "Kourkoulos-Arditis, Stamatis"]
[Black "Fernandez Aguilar, Francisco"]
[Result "1-0"]
[ECO "D02"]
[WhiteElo "2556"]
[BlackElo "2065"]
[Annotator "TA"]
[PlyCount "67"]
[EventDate "2024.03.27"]
[EventType "swiss"]
[EventCountry "ESP"]
[SourceTitle "playchess.com"]
[Source "ChessBase"]
[SourceQuality "1"]
[TimeControl "5400+30"]

{[%evp 11,67,26,33,22,4,-16,25,46,37,13,35,27,40,31,40,30,51,53,47,58,43,50,87,84,109,103,103,84,108,95,99,104,115,119,115,112,104,96,118,113,201,194,185,197,203,192,214,200,230,183,696,695,751,704,764,747,758,754]} 1. Nf3 {[%emt 0:00:04]} d5 {[%emt 0:00:10]} 2. g3 {[%emt 0:00:05]} Nc6 {[%emt 0:00:51]} 3. d4 {[%emt 0:00:21]} Bf5 {[%emt 0:00:07]} 4. Bg2 {[%emt 0:01:27]} Nb4 {[%emt 0:00:19]} 5. Na3 {[%emt 0:00:18]} e6 {[%emt 0:00:24]} 6. O-O {[%emt 0:00:41]} Be7 {[%emt 0:01:57]} 7. Ne5 {[%emt 0:02:18]} f6 {[%emt 0:07:32]} 8. Nd3 {[%emt 0:03:19][%cal Oe2e4]} Nxd3 {[%emt 0:12:50]} 9. cxd3 {[%emt 0:02:18] White has an edge.} c6 {[%emt 0:01:24]} 10. Nc2 {[%emt 0:03:37]} Bd6 {[%emt 0:05:37]} 11. e4 {[%emt 0:03:25]} Bg6 {[%emt 0:02:24]} 12. Re1 {[%emt 0:00:08]} Ne7 {[%emt 0:01:12]} 13. h4 {[%emt 0:02:19][%cal Bh2h4,Bh4h5,Bh5h6][%mdl 32]} O-O {[%emt 0:04:05]} 14. h5 {[%emt 0:04:00]} Be8 {[%emt 0:04:24]} 15. h6 {[%emt 0:01:30]} g6 {[%emt 0:00:34]} 16. e5 {[%emt 0:00:51]} fxe5 {[%emt 0:00:44]} 17. dxe5 {[%emt 0:00:07]} Bc5 {[%emt 0:01:21]} 18. d4 {[%emt 0:27:02]} Bb6 {[%emt 0:00:08]} 19. Bg5 {[%emt 0:00:06]} Bd7 {[%emt 0:05:25] Black is weak on the dark squares} 20. b4 {[%emt 0:00:37]} Qe8 {[%emt 0:01:57]} 21. Qd2 {[%emt 0:46:27]} Nf5 {[%emt 0:15:29]} 22. g4 {[%emt 0:00:00][%cal Bg3g4,Bg4g5][%mdl 32]} Ne7 {[%emt 0:01:05]} 23. Bf6 $36 {[%emt 0:00:00][%mdl 2048] White has strong initiative.} Bd8 {[%emt 0:04:11]} 24. Bh3 {[%emt 0:00:00] White has more active pieces. The black rooks are passive.} Nc8 {[%emt 0:00:31] [#]} 25. g5 {[%emt 0:00:00]} Ne7 {[%emt 0:09:29]} (25... a5 $16 26. Ne3 Ne7) 26. Ne3 $18 {[%emt 0:00:00][%cal Bc2e3,Be3g2,Bg2f4][%mdl 32]} Nf5 {[%emt 0:00:29]} 27. Ng2 {[%emt 0:00:00]} Qf7 {[%emt 0:04:52]} 28. Nf4 {[%emt 0:00:00] And now Bxf5 would win.} Re8 {[%emt 0:00:46]} 29. a4 {[%emt 0:00:00]} a6 {[%emt 0:05:23]} 30. Re2 {[%emt 0:00:00]} Bb6 $2 {[%emt 0:08:27]} (30... Nh4 31. Qc3 Bxf6 32. exf6 Rad8) 31. Bxf5 {[%emt 0:00:00] White is clearly winning.} exf5 {[%emt 0:00:01] [#]} 32. e6 $1 {[%emt 0:00:00][%mdl 512]} Bxe6 {[%emt 0:02:22]} 33. Rae1 {[%emt 0:00:00]} Bd7 {[%emt 0:00:00]} 34. Re7 {[%emt 0:00:00] Weighted Error Value: White=0.07 (flawless) /Black=0.41.  Mistake:       	---       	Black=2      Inaccurate:     	---       	Black=2      OK:         	White=9     	Black=7      Best:        	White=5     	---} 1-0

[Event "VIII Open Semana Santa 2024"]
[Site "San Vicente del Raspeig"]
[Date "2024.03.27"]
[Round "1.6"]
[White "Perea Fruet, Federico"]
[Black "Adhiban, B.."]
[Result "0-1"]
[ECO "B50"]
[WhiteElo "2065"]
[BlackElo "2541"]
[Annotator "TA"]
[PlyCount "78"]
[EventDate "2024.03.27"]
[EventType "swiss"]
[EventCountry "ESP"]
[SourceTitle "playchess.com"]
[Source "ChessBase"]
[SourceQuality "1"]
[TimeControl "5400+30"]

{[%evp 9,78,20,18,18,20,19,46,57,64,45,53,41,37,28,42,46,40,27,21,6,6,0,0,-26,-33,-70,-66,-79,-69,-66,-57,-117,-120,-122,-125,-139,-112,-110,-103,-105,-109,-187,-186,-186,-175,-241,-225,-235,-246,-231,-200,-268,-280,-390,-281,-597,-597,-584,-575,-552,-564,-1187,-1184,-1166,-1152,-1129,-1105,-1783,-836,-1928,-807]} 1. e4 {[%emt 0:00:03]} c5 {[%emt 0:00:08]} 2. Nf3 {[%emt 0:00:08]} d6 {[%emt 0:00:03]} 3. c3 {[%emt 0:00:27]} Nf6 {[%emt 0:00:30]} 4. h3 {[%emt 0:00:16]} Bd7 {[%emt 0:25:49]} 5. Bd3 {[%emt 0:02:09]} Nc6 {[%emt 0:00:28][%cal Bb8c6,Bc6b4,Bb4c2][%mdl 32]} 6. Bc2 {[%emt 0:00:47]} Rc8 {[%emt 0:02:56]} 7. O-O {[%emt 0:00:55]} g6 {[%emt 0:02:46]} 8. d4 {[%emt 0:02:36] Weiß steht etwas besser.} cxd4 {[%emt 0:00:15]} 9. cxd4 {[%emt 0:01:39]} Nb4 {[%emt 0:00:04]} 10. Nc3 {[%emt 0:15:04]} Nxc2 {[%emt 0:00:24]} 11. Qxc2 {[%emt 0:00:04]} Bg7 {[%emt 0:05:08][%cal Od6d5]} 12. Qb3 {[%emt 0:02:28][%cal Oe4e5]} O-O {[%emt 0:00:26]} 13. Be3 {[%emt 0:01:06][%cal Oa1d1]} b5 {[%emt 0:12:35]} 14. Rac1 {[%emt 0:03:20][%cal Of1d1]} (14. Nxb5 $2 {ist das falsche Schlagen.} Rb8 (14... Nxe4 15. Nxa7 Rb8 16. Qc4 $15) 15. a4 a6 $19 (15... Nxe4 16. Qc2 $17)) 14... a5 {[%emt 0:09:19]} 15. a3 {[%emt 0:02:45]} Rb8 {[%emt 0:03:11]} 16. Qc2 {[%emt 0:02:19]} b4 {[%emt 0:00:25]} 17. axb4 {[%emt 0:01:07]} axb4 {[%emt 0:00:04][%cal Ob8c8] [#] Droht stark ...Rc8!} 18. Ne2 {[%emt 0:00:15]} b3 {[%emt 0:00:54]} 19. Qb1 {[%emt 0:00:32]} d5 $36 {[%emt 0:00:14][%mdl 2048] Schwarz drückt.} 20. Ne5 {[%emt 0:04:53] Ab hier gerät Weiß ins Schliddern.} ({Doch nicht} 20. e5 Bf5 21. exf6 (21. Qa1 $2 Ra8 $17) 21... Bxf6 $17 (21... Bxb1 22. fxg7 Kxg7 23. Rxb1 $16)) ({Vorzuziehen ist} 20. Ng3 $15) 20... Nxe4 $17 {[%emt 0:01:27]} 21. Nxd7 {[%emt 0:02:13]} Qxd7 {[%emt 0:00:01]} 22. Bf4 {[%emt 0:00:14]} Rbc8 23. Qd3 {[%emt 0:02:01]} Qa4 {[%emt 0:04:20]} 24. f3 {[%emt 0:06:32]} Nd6 {Schwarz hat aktiveres Spiel.} 25. Be5 {[%emt 0:03:03]} (25. Bxd6 $17 exd6 26. Kh2) 25... Bxe5 {[%emt 0:04:23]} 26. dxe5 {[%emt 0:00:04]} Nf5 {[%emt 0:01:02] Zielt auf ...Rc2 ab.} 27. Rc3 {[%emt 0:07:56]} (27. Ra1 $142 Qc4 28. Qxc4 Rxc4 (28... dxc4 $2 29. Kf2 $19) 29. Nc1) 27... Rxc3 $19 {[%emt 0:02:53]} 28. Nxc3 {[%emt 0:00:38]} Qa7+ {[%emt 0:00:08]} 29. Kh2 {[%emt 0:00:47]} e6 {[%emt 0:00:38]} 30. f4 {[%emt 0:14:23]} Rc8 {[%emt 0:00:13]} 31. Qb5 {[%emt 0:02:05]} Rb8 {[%emt 0:07:43]} 32. Qc6 {[%emt 0:11:35]} (32. Qe2) 32... Qe3 {[%emt 0:00:20] Schwarz steht klar auf Gewinn.} 33. Qc7 {[%emt 0:00:30]} Rf8 {[%emt 0:00:34] [#] ...Qg3+ ist eine echte Drohung.} 34. Qb7 {[%emt 0:03:36]} Qd2 {[%emt 0:01:51] ...Nh4 wäre nun fies.} 35. Qxb3 {[%emt 0:01:10]} Nh4 {[%emt 0:00:25]} 36. Rg1 {[%emt 0:00:33]} Nf3+ {[%emt 0:00:03]} 37. Kh1 {[%emt 0:00:21]} Nxg1 {[%emt 0:00:04]} 38. Kxg1 {[%emt 0:00:07]} Qxf4 {[%emt 0:00:04]} (38... Qe3+ $142 39. Kh2 Qxf4+ 40. Kg1 Qe3+ (40... Qxe5 $2 41. Qc2 $19) 41. Kh2 d4 (41... Qxe5+ $2 42. g3 $19)) 39. Nb5 {[%emt 0:00:53]} Qxe5 {[%emt 0:01:34] Gewichteter Fehlerwert: Weiß=0.74/Schwarz=0.24 (präzise) .  Fehler:       	Weiß=4     	---        Ungenau:       	Weiß=5     	Schwarz=1     OK:         	Weiß=8     	Schwarz=19    Bester:       	Weiß=1     	Schwarz=2} (39... Rc8 $142 40. Nc3 Qe3+ (40... Qxe5 $2 41. Qc2 $19) 41. Kh1 d4 (41... Qxe5 $2 42. Qc2 $19)) 0-1